fUSD/lending_fUSD_20250515
["ID","MTS","AMOUNT","RATE_DAILY","PERIOD"]
[361115179,1747267857566,-400.0,0.00012268,2]
[361115180,1747267857576,-400.0,0.00012268,2]
[361115181,1747267857587,-400.0,0.00012268,2]
[361115182,1747267857597,-400.0,0.00012268,2]
[361115183,1747267857607,-562.6,0.00012268,2]
[361115184,1747267857618,-228.55510174,0.00012268,2]
[361115185,1747267857627,-400.0,0.00012268,2]
[361115186,1747267857636,-236.60644534,0.00012268,2]
[361115187,1747267857648,-269.30355466,0.00012268,2]
[361115188,1747267857658,-28.67801639,0.00012268,2]
[361115190,1747268198774,150.0,0.000135,5]
[361115191,1747268736120,2446.38051852,9e-05,2]
[361115192,1747268754015,10236.15850188,6.94e-05,2]
[361115193,1747268761935,12358.31136251,8e-05,2]
[361115194,1747268833061,615.92,8.959e-05,2]
[361115195,1747268834628,205.0,9.8e-05,2]
[361115198,1747268872716,2069.05455315,0.0001,2]
[361115223,1747269032540,-161.73,0.00010996,2]
[361115225,1747269032549,-200.35,0.00011,2]
[361115230,1747269032587,-2329.58378455,0.00011,2]
[361115232,1747269032596,-1000.0,0.00011028,2]
[361115234,1747269032605,-200.0,0.00011081,2]
[361115236,1747269032615,-315.98,0.00011087,2]
[361115238,1747269032624,-157.23,0.00011112,2]
[361115239,1747269032633,-615.92,0.00011223,2]
[361115241,1747269032643,-2700.9396,0.00011521,2]
[361115243,1747269032652,-207.4,0.00011612,2]
[361115245,1747269032662,-1200.0,0.00011616,2]
[361115247,1747269032671,-200.0,0.00011617,2]
[361115249,1747269032681,-400.0,0.00011619,2]
[361115251,1747269032690,-493.54,0.00011619,2]
[361115253,1747269032700,-400.0,0.00011619,2]
[361115255,1747269032709,-400.0,0.00011619,2]
[361115257,1747269032718,-449.31,0.00011619,2]
[361115259,1747269032731,-400.0,0.00011619,2]
[361115261,1747269032741,-400.0,0.00011619,2]
[361115263,1747269032750,-400.0,0.00011619,2]
[361115265,1747269032760,-550.36,0.00011619,2]
[361115266,1747269032769,-400.0,0.00011619,2]
[361115267,1747269032779,-400.0,0.00011619,2]
[361115268,1747269032789,-400.0,0.00011619,2]
[361115269,1747269032799,-400.0,0.00011619,2]
[361115270,1747269032809,-400.0,0.00011619,2]
[361115271,1747269032819,-400.0,0.00011619,2]
[361115272,1747269032829,-402.64,0.00011619,2]
[361115273,1747269032838,-1218.43,0.00011619,2]
[361115274,1747269032846,-578.3,0.00011619,2]
[361115275,1747269032855,-406.6,0.00011619,2]
[361115276,1747269032865,-400.0,0.00011619,2]
[361115277,1747269032875,-400.0,0.00011619,2]
[361115278,1747269032884,-400.0,0.00011619,2]
[361115279,1747269032893,-527.66,0.00011619,2]
[361115280,1747269032902,-531.55,0.00011619,2]
[361115281,1747269032911,-400.0,0.00011619,2]
[361115282,1747269032920,-400.0,0.00011619,2]
[361115283,1747269032929,-400.0,0.00011619,2]
[361115284,1747269032938,-438.25,0.00011619,2]
[361115285,1747269032947,-908.7,0.00011619,2]
[361115286,1747269032957,-400.0,0.00011619,2]
[361115287,1747269032966,-769.03,0.00011619,2]
[361115288,1747269032975,-400.0,0.00011619,2]
[361115289,1747269032984,-400.0,0.00011619,2]
[361115290,1747269032993,-400.0,0.00011619,2]
[361115291,1747269033002,-400.0,0.00011619,2]
[361115292,1747269033011,-313.57661545,0.00011619,2]
[361115296,1747269038258,-86.42338455,0.00011619,2]
[361115298,1747269038267,-274.01507766,0.00011619,2]
[361115300,1747269038279,-194.82492234,0.00011619,2]
[361115302,1747269038289,-421.59,0.00011619,2]
[361115303,1747269038298,-390.27376126,0.00011619,2]
[361115324,1747269040349,-9.72623874,0.00011619,2]
[361115325,1747269040359,-460.79,0.00011619,2]
[361115326,1747269040368,-469.48376126,0.00011619,2]
[361115327,1747269040510,-549.30623874,0.00011619,2]
[361115328,1747269040520,-494.85,0.00011619,2]
[361115329,1747269040530,-400.0,0.00011619,2]
[361115330,1747269040539,-666.82133726,0.00011619,2]
[361115331,1747269040674,-806.27866274,0.00011619,2]
[361115332,1747269040684,-400.0,0.00011619,2]
[361115333,1747269040694,-221.80767089,0.00011619,2]
[361115334,1747269040706,-518.75,0.00011619,2]
[361115335,1747269040718,-242.90232911,0.00011619,2]
[361115336,1747269040727,-668.48,0.00011619,2]
[361115337,1747269040737,-400.0,0.00011619,2]
[361115338,1747269040747,-400.0,0.00011619,2]
[361115339,1747269040757,-156.91767086,0.00011619,2]
[361115340,1747269040774,-367.23232914,0.00011619,2]
[361115341,1747269040784,-82.76767086,0.00011619,2]
[361115349,1747269043296,-317.23232914,0.00011619,2]
[361115350,1747269043306,-400.0,0.00011619,2]
[361115351,1747269043316,-524.14,0.00011619,2]
[361115352,1747269043325,-69.93635541,0.00011619,2]
[361115356,1747269043405,-330.06364459,0.00011619,2]
[361115357,1747269043415,-97.79333426,0.00011619,2]
[361115358,1747269043428,-302.20666574,0.00011619,2]
[361115359,1747269043438,-211.17309937,0.00011619,2]
[361115360,1747269043623,-188.82690063,0.00011619,2]
[361115362,1747269043635,-376.12193499,0.00011619,2]
[361115373,1747269046379,-186.66806501,0.00011619,2]
[361115374,1747269046390,-297.14646145,0.00011619,2]
[361115375,1747269046604,-102.85353855,0.00011619,2]
[361115376,1747269046615,-512.42,0.00011619,2]
[361115377,1747269046624,-400.0,0.00011619,2]
[361115378,1747269046635,-200.0,0.00011638,2]
[361115379,1747269046644,-229.325321,0.00011678,2]
[361115380,1747269046654,-1427.53379979,0.0001179,2]
[361115381,1747269046665,-1150.54999,0.0001179,2]
[361115382,1747269046693,-1582.73207115,0.0001179,2]
[361115383,1747269046702,-155.96039592,0.00011793,2]
[361115384,1747269046712,-352.94,0.000118,2]
[361115385,1747269046721,-452.54,0.000118,2]
[361115387,1747269046731,-905.08,0.000118,2]
[361115388,1747269046741,-704.74,0.000118,2]
[361115389,1747269046750,-704.9,0.000118,2]
[361115390,1747269046759,-162.63,0.000118,2]
[361115391,1747269046769,-325.19,0.000118,2]
[361115392,1747269046778,-162.63,0.000118,2]
[361115393,1747269046788,-229.325321,0.00011824,2]
[361115394,1747269046797,-457.587,0.00011835,2]
[361115395,1747269046806,-1147.0,0.00011835,2]
[361115396,1747269046816,-5940.0,0.00011835,2]
[361115397,1747269046825,-154.0,0.00011835,2]
[361115398,1747269046835,-1549.88775686,0.00011835,2]
[361115400,1747269046846,-2334.9011823,0.00011835,2]
[361115402,1747269146419,150.0,0.00010855,7]
[361115404,1747269408082,450.0,0.0001,2]
[361115405,1747269585357,-200.0,0.00017808,14]
[361115406,1747269846361,566.4,8.959e-05,2]
[361115417,1747270231483,-8973.53242887,0.0001008,2]
[361115418,1747270231494,-561.1462303,0.0001008,2]
[361115419,1747270231536,-542.6604,0.0001008,2]
[361115420,1747270231547,-291.26119028,0.0001008,2]
[361115421,1747270231557,-1260.23074267,0.0001008,2]
[361115422,1747270231590,-12271.16900788,0.0001008,2]
[361115423,1747270231599,-157.99,0.00010206,2]
[361115424,1747270231607,-200.0,0.00010566,2]
[361115425,1747270231614,-787.33258202,0.00010824,2]
[361115426,1747270231624,-703.29741798,0.00010824,2]
[361115427,1747270231633,-229.57704598,0.00010827,2]
[361115428,1747270231647,-1261.05295402,0.00010827,2]
[361115429,1747270231656,-1490.63,0.0001083,2]
[361115430,1747270231664,-1490.63,0.00010833,2]
[361115431,1747270231673,-1490.63,0.00010835,2]
[361115432,1747270231682,-1200.0,0.00010837,2]
[361115433,1747270231691,-1490.63,0.00010838,2]
[361115434,1747270231699,-500.77892801,0.00010841,2]
[361115435,1747270231709,-519.20423304,0.00010841,2]
[361115436,1747270231725,-470.64683895,0.00010841,2]
[361115437,1747270231734,-16.9209117,0.00010844,2]
[361115438,1747270231744,-1473.7090883,0.00010844,2]
[361115439,1747270231753,-671.3109137,0.00010847,2]
[361115440,1747270231768,-575.40914099,0.00010847,2]
[361115479,1747270237668,-243.90994531,0.00010847,2]
[361115480,1747270237678,-581.17928897,0.0001085,2]
[361115495,1747270239661,-909.45071103,0.0001085,2]
[361115496,1747270239673,-492.82428897,0.00010853,2]
[361115497,1747270239715,-997.80571103,0.00010853,2]
[361115498,1747270239726,-95.16908735,0.00010854,2]
[361115499,1747270239871,-145.39091265,0.00010854,2]
[361115500,1747270239883,-306.58285555,0.00010855,2]
[361115501,1747270239897,-1184.04714445,0.00010855,2]
[361115502,1747270239908,-1490.63,0.00010858,2]
[361115503,1747270239919,-1490.63,0.00010861,2]
[361115504,1747270239930,-1490.63,0.00010864,2]
[361115505,1747270239942,-1490.63,0.00010867,2]
[361115506,1747270239952,-1490.63,0.0001087,2]
[361115507,1747270239964,-1490.63,0.00010873,2]
[361115508,1747270239978,-1490.63,0.00010875,2]
[361115509,1747270239989,-854.51064372,0.00010878,2]
[361115510,1747270240002,-316.14989444,0.00010878,2]
[361115511,1747270240017,-319.96946184,0.00010878,2]
[361115512,1747270240028,-847.28502556,0.00011069,2]
[361115513,1747270240041,-152.71497444,0.00011069,2]
[361115514,1747270240053,-575.53,0.0001107,2]
[361115515,1747270240064,-566.4,0.00011223,2]
[361115516,1747270240075,-200.0,0.00011234,2]
[361115517,1747270240086,-165.8,0.00011273,2]
[361115519,1747270240097,-452.72,0.00011378,2]
[361115521,1747270240107,-352.94,0.00011378,2]
[361115523,1747270240118,-207.4,0.00011413,2]
[361115525,1747270240129,-171.39119149,0.000115,2]
[361115527,1747270240139,-9852.02978385,0.000115,2]
[361115530,1747270240169,-2587.90000003,0.000115,2]
[361115537,1747270242920,-14148.88803931,0.000115,2]
[361115540,1747270242937,-2078.6097193,0.000115,2]
[361115544,1747270243007,-6824.431943,0.000115,2]
[361115545,1747270243019,-1020.92920097,0.000115,2]
[361115549,1747270245655,-50061.5457479,0.00011,2]
[361115550,1747270245707,-1338.51378946,0.00011,2]
[361115551,1747270245717,-3131.13170189,0.000115,2]
[361115552,1747270245760,-23902.45980827,0.000115,2]
[361115556,1747270300862,519.0,0.00027397,120]
[361115560,1747270480822,400.0,0.00027,120]
[361115563,1747270520485,294.0,0.000273,120]
[361115564,1747270821653,150.0,0.00010695,7]
[361115565,1747271095563,533.72,8.68e-05,2]
[361115566,1747271240724,450.0,0.0001,2]
[361115567,1747271354914,1000.0,0.00027397,120]
[361115581,1747271431817,-1200.0,0.00010546,2]
[361115582,1747271431826,-300.0,0.00010546,2]
[361115583,1747271431836,-193.66733706,0.00010546,2]
[361115584,1747271431957,-106.33266294,0.00010546,2]
[361115585,1747271431967,-1366.76733706,0.00010547,2]
[361115590,1747271432082,-20523.01266294,0.00010547,2]
[361115592,1747271432092,-184.9,0.00010584,2]
[361115594,1747271432102,-161.73,0.00010708,2]
[361115596,1747271432111,-1000.0,0.00010769,2]
[361115597,1747271432120,-160.17,0.00010835,2]
[361115598,1747271432130,-533.72,0.00010944,2]
[361115599,1747271432139,-500.0,0.00010959,2]
[361115600,1747271432149,-500.0,0.00010959,2]
[361115601,1747271432158,-500.0,0.00010959,2]
[361115602,1747271432168,-500.0,0.00010959,2]
[361115603,1747271432178,-500.0,0.00010959,2]
[361115604,1747271432188,-500.0,0.00010959,2]
[361115605,1747271432198,-500.0,0.00010959,2]
[361115606,1747271432208,-500.0,0.00010959,2]
[361115607,1747271432217,-199.09,0.00011,2]
[361115608,1747271432227,-163.26,0.00011017,2]
[361115609,1747271432236,-500.0,0.00011123,2]
[361115610,1747271432246,-200.0,0.00011125,2]
[361115611,1747271432256,-864.05076374,0.00011137,2]
[361115612,1747271432265,-162.63,0.000112,2]
[361115613,1747271432275,-905.16,0.000112,2]
[361115614,1747271432285,-162.5,0.000112,2]
[361115615,1747271432295,-200.0,0.00011249,2]
[361115616,1747271432304,-162.63,0.000113,2]
[361115617,1747271432314,-392.34,0.000113,2]
[361115618,1747271432324,-836.4,0.000113,2]
[361115619,1747271432334,-452.72,0.000113,2]
[361115620,1747271432344,-219.33,0.000113,2]
[361115621,1747271432354,-162.63,0.000113,2]
[361115622,1747271432364,-162.63,0.000113,2]
[361115623,1747271432375,-162.63,0.000113,2]
[361115624,1747271432385,-329.21,0.000113,2]
[361115625,1747271432395,-352.94,0.000113,2]
[361115626,1747271432404,-452.72,0.000113,2]
[361115627,1747271432414,-352.94,0.000113,2]
[361115628,1747271432425,-200.0,0.000114,2]
[361115629,1747271432434,-324.84,0.000114,2]
[361115630,1747271432445,-324.65,0.000114,2]
[361115631,1747271432456,-1147.0,0.00011487,2]
[361115632,1747271432465,-5940.0,0.00011487,2]
[361115633,1747271432475,-207.4,0.00011489,2]
[361115634,1747271432490,-1380.7367225,0.000115,2]
[361115635,1747271432499,-522.91073938,0.000115,2]
[361115636,1747271432509,-352.94,0.00011546,2]
[361115637,1747271432518,-904.36,0.00011546,2]
[361115638,1747271432529,-352.94,0.00011546,2]
[361115639,1747271432539,-352.94,0.00011546,2]
[361115640,1747271432548,-352.94,0.00011546,2]
[361115641,1747271432561,-352.94,0.00011546,2]
[361115642,1747271432572,-704.34,0.00011546,2]
[361115643,1747271432586,-420.0,0.00011594,2]
[361115644,1747271432595,-151.0,0.00011612,2]
[361115645,1747271432605,-155.0,0.00011612,2]
[361115646,1747271432616,-668.65185757,0.00011612,2]
[361115647,1747271432625,-151.0,0.00011612,2]
[361115648,1747271432635,-151.0,0.00011612,2]
[361115649,1747271432646,-500.0,0.00011619,2]
[361115650,1747271432657,-4006.0528,0.00011619,2]
[361115651,1747271432669,-4032.0,0.00011619,2]
[361115652,1747271432678,-6822.0,0.00011619,2]
[361115653,1747271432690,-154.0,0.00011619,2]
[361115654,1747271432700,-486.203,0.00011619,2]
[361115655,1747271432710,-1000.0,0.00011716,2]
[361115656,1747271432721,-1000.0,0.00011716,2]
[361115657,1747271432734,-1344.068,0.00011716,2]
[361115658,1747271432743,-3748.7342749,0.00011716,2]
[361115659,1747271432754,-284.77917247,0.00011716,2]
[361115660,1747271432764,-159.8992196,0.00011716,2]
[361115661,1747271432773,-17632.35003615,0.00011716,2]
[361115662,1747271432783,-8730.0135,0.00011718,2]
[361115663,1747271432792,-6864.5218,0.00011718,2]
[361115664,1747271432801,-807.1883,0.00011718,2]
[361115665,1747271432810,-2143.1793,0.00011718,2]
[361115666,1747271432819,-2459.8101,0.00011718,2]
[361115667,1747271432828,-1552.64182876,0.00011789,2]
[361115668,1747271432948,-2322.71479847,0.00011789,2]
[361115669,1747271432961,-1839.58143352,0.00011789,2]
[361115670,1747271433070,-823.71823925,0.00011789,2]
[361115671,1747271433079,-1000.0,0.000118,2]
[361115672,1747271433089,-400.0,0.00011815,2]
[361115673,1747271433099,-400.0,0.00011815,2]
[361115674,1747271433109,-400.0,0.00011815,2]
[361115675,1747271433119,-400.0,0.00011815,2]
[361115676,1747271433128,-400.0,0.00011815,2]
[361115677,1747271433138,-429.09,0.00011815,2]
[361115678,1747271433147,-2067.64,0.00011815,2]
[361115679,1747271433156,-400.0,0.00011815,2]
[361115680,1747271433166,-872.66,0.00011815,2]
[361115681,1747271433175,-400.0,0.00011815,2]
[361115682,1747271433185,-3123.46,0.00011815,2]
[361115683,1747271433196,-477.95,0.00011815,2]
[361115684,1747271433205,-430.37,0.00011815,2]
[361115685,1747271433215,-403.31,0.00011815,2]
[361115686,1747271433225,-1303.0,0.00011815,2]
[361115687,1747271433483,-351.18200252,0.00011815,2]
[361115688,1747271433494,-400.0,0.00011815,2]
[361115689,1747271433506,-400.0,0.00011815,2]
[361115690,1747271433516,-614.1,0.00011815,2]
[361115691,1747271433527,-400.0,0.00011815,2]
[361115692,1747271433537,-400.0,0.00011815,2]
[361115693,1747271433547,-692.77,0.00011815,2]
[361115694,1747271433558,-400.0,0.00011815,2]
[361115695,1747271433568,-455.69,0.00011815,2]
[361115696,1747271433579,-162105.58352516,0.00011815,2]
[361115697,1747271433588,-400.0,0.00011816,2]
[361115698,1747271433599,-510.9,0.00011816,2]
[361115699,1747271433608,-219.8085983,0.00011816,2]
[361115700,1747271433617,-400.0,0.00011816,2]
[361115701,1747271433627,-400.0,0.00011816,2]
[361115702,1747271433636,-400.0,0.00011816,2]
[361115703,1747271433646,-282.60158863,0.00011816,2]
[361115704,1747271433656,-151.00376628,0.00011816,2]
[361115705,1747271433667,-538.68,0.00011816,2]
[361115706,1747271433676,-400.0,0.00011816,2]
[361115707,1747271433686,-559.96,0.00011816,2]
[361115708,1747271433695,-505.94,0.00011816,2]
[361115709,1747271433705,-400.0,0.00011816,2]
[361115710,1747271433714,-507.76584296,0.00011816,2]
[361115711,1747271433724,-333.68632688,0.00011816,2]
[361115712,1747271433735,-500.0,0.00011816,2]
[361115713,1747271433744,-400.0,0.00011816,2]
[361115714,1747271433754,-543.97557353,0.00011816,2]
[361115715,1747271433764,-400.0,0.00011816,2]
[361115716,1747271433774,-400.0,0.00011816,2]
[361115717,1747271433783,-400.0,0.00011816,2]
[361115718,1747271433793,-400.0,0.00011816,2]
[361115719,1747271433802,-313.56417184,0.00011816,2]
[361115720,1747271433813,-489.65,0.00011816,2]
[361115721,1747271433823,-524.10072955,0.00011816,2]
[361115722,1747271433832,-164.90625139,0.00011816,2]
[361115723,1747271433842,-400.0,0.00011816,2]
[361115724,1747271433852,-463.35,0.00011816,2]
[361115725,1747271433862,-400.0,0.00011816,2]
[361115726,1747271433872,-400.0,0.00011816,2]
[361115727,1747271433882,-471.78,0.00011816,2]
[361115728,1747271433892,-400.0,0.00011816,2]
[361115729,1747271433902,-400.0,0.00011816,2]
[361115730,1747271433912,-400.0,0.00011816,2]
[361115731,1747271433921,-400.0,0.00011816,2]
[361115732,1747271433930,-400.0,0.00011816,2]
[361115733,1747271433939,-400.0,0.00011816,2]
[361115734,1747271433949,-400.0,0.00011816,2]
[361115735,1747271433959,-54695.969801,0.00011816,2]
[361115736,1747271433969,-768.48747,0.00011816,2]
[361115737,1747271433979,-400.0,0.00011816,2]
[361115738,1747271433990,-400.0,0.00011816,2]
[361115739,1747271434000,-400.0,0.00011816,2]
[361115740,1747271434010,-400.0,0.00011816,2]
[361115741,1747271434021,-400.0,0.00011816,2]
[361115742,1747271434031,-987.58,0.00011816,2]
[361115743,1747271434040,-402.32602705,0.00011816,2]
[361115744,1747271434050,-400.0,0.00011816,2]
[361115745,1747271434061,-400.0,0.00011816,2]
[361115746,1747271434072,-491.78,0.00011816,2]
[361115747,1747271434082,-400.0,0.00011816,2]
[361115748,1747271434093,-418.27404035,0.00011816,2]
[361115749,1747271434103,-412.26102787,0.00011816,2]
[361115750,1747271434113,-503.27713964,0.00011816,2]
[361115751,1747271434123,-420.63600308,0.00011816,2]
[361115752,1747271434133,-400.0,0.00011816,2]
[361115753,1747271434143,-403.19259088,0.00011816,2]
[361115754,1747271434153,-229.33,0.00011816,2]
[361115755,1747271434162,-503.02765882,0.00011816,2]
[361115756,1747271434172,-403.18618766,0.00011816,2]
[361115757,1747271434183,-507.39669017,0.00011816,2]
[361115758,1747271434194,-400.0,0.00011816,2]
[361115759,1747271434205,-400.0,0.00011816,2]
[361115760,1747271434215,-400.0,0.00011816,2]
[361115761,1747271434225,-400.0,0.00011816,2]
[361115762,1747271434236,-400.0,0.00011816,2]
[361115763,1747271434247,-400.81814413,0.00011816,2]
[361115764,1747271434260,-400.0,0.00011816,2]
[361115765,1747271434271,-400.0,0.00011816,2]
[361115766,1747271434281,-400.0,0.00011816,2]
[361115767,1747271434291,-542.97194177,0.00011816,2]
[361115768,1747271434301,-400.0,0.00011816,2]
[361115769,1747271434311,-400.0,0.00011816,2]
[361115770,1747271434322,-400.0,0.00011816,2]
[361115771,1747271434332,-400.0,0.00011816,2]
[361115772,1747271434342,-504.11684838,0.00011816,2]
[361115773,1747271434353,-438.76,0.00011816,2]
[361115774,1747271434363,-400.0,0.00011816,2]
[361115775,1747271434374,-400.0,0.00011816,2]
[361115776,1747271434384,-417.71839635,0.00011816,2]
[361115777,1747271434395,-400.0,0.00011816,2]
[361115778,1747271434405,-400.0,0.00011816,2]
[361115779,1747271434416,-400.0,0.00011816,2]
[361115780,1747271434426,-400.0,0.00011816,2]
[361115781,1747271434437,-400.0,0.00011816,2]
[361115782,1747271434447,-400.0,0.00011816,2]
[361115783,1747271434458,-400.0,0.00011816,2]
[361115784,1747271434468,-400.0,0.00011816,2]
[361115785,1747271434482,-400.0,0.00011816,2]
[361115786,1747271434492,-400.0,0.00011816,2]
[361115787,1747271434503,-400.0,0.00011816,2]
[361115788,1747271434516,-400.0,0.00011816,2]
[361115789,1747271434527,-400.0,0.00011816,2]
[361115790,1747271434537,-456.67601985,0.00011816,2]
[361115791,1747271434548,-400.0,0.00011816,2]
[361115792,1747271434558,-422.95,0.00011816,2]
[361115793,1747271434568,-400.0,0.00011816,2]
[361115794,1747271434579,-400.0,0.00011816,2]
[361115795,1747271434589,-400.0,0.00011816,2]
[361115796,1747271434599,-400.0,0.00011816,2]
[361115797,1747271434609,-132.3056984,0.00011816,2]
[361115798,1747271434624,-478.9643016,0.00011816,2]
[361115799,1747271434634,-400.0,0.00011816,2]
[361115800,1747271434644,-1735.11,0.00011816,2]
[361115801,1747271434654,-400.0,0.00011816,2]
[361115802,1747271434664,-400.0,0.00011816,2]
[361115803,1747271434673,-704.64,0.00011816,2]
[361115804,1747271434683,-410.04268681,0.00011816,2]
[361115805,1747271434693,-581.81,0.00011816,2]
[361115806,1747271434702,-400.0,0.00011816,2]
[361115807,1747271434711,-400.0,0.00011816,2]
[361115808,1747271434721,-1473.27,0.00011816,2]
[361115809,1747271434731,-813.04,0.00011816,2]
[361115810,1747271434741,-400.0,0.00011816,2]
[361115811,1747271434751,-407.15323211,0.00011816,2]
[361115812,1747271434761,-596.95,0.00011816,2]
[361115813,1747271434771,-404.63915002,0.00011816,2]
[361115814,1747271434780,-403.14182134,0.00011816,2]
[361115815,1747271434790,-469.8,0.00011816,2]
[361115816,1747271434800,-400.0,0.00011816,2]
[361115817,1747271434810,-400.0,0.00011816,2]
[361115818,1747271434819,-400.0,0.00011816,2]
[361115819,1747271434829,-404.726182,0.00011816,2]
[361115820,1747271434838,-408.62094388,0.00011816,2]
[361115821,1747271434848,-400.0,0.00011816,2]
[361115822,1747271434857,-473.57020222,0.00011816,2]
[361115823,1747271434866,-533.22,0.00011816,2]
[361115824,1747271434876,-400.0,0.00011816,2]
[361115825,1747271434885,-400.0,0.00011816,2]
[361115826,1747271434895,-403.36765374,0.00011816,2]
[361115827,1747271434904,-400.0,0.00011816,2]
[361115828,1747271434914,-400.0,0.00011816,2]
[361115829,1747271434924,-405.35000894,0.00011816,2]
[361115830,1747271434933,-484.52445845,0.00011816,2]
[361115831,1747271434943,-361.85420225,0.00011816,2]
[361115832,1747271434952,-400.0,0.00011816,2]
[361115833,1747271434962,-405.75127797,0.00011816,2]
[361115834,1747271434971,-401.56916875,0.00011816,2]
[361115835,1747271434980,-370.29433082,0.00011816,2]
[361115836,1747271434990,-824.65,0.00011816,2]
[361115837,1747271434999,-409.42910959,0.00011816,2]
[361115838,1747271435011,-1297.48,0.00011816,2]
[361115839,1747271435021,-400.0,0.00011816,2]
[361115840,1747271435031,-400.0,0.00011816,2]
[361115841,1747271435040,-400.0,0.00011816,2]
[361115842,1747271435050,-400.0,0.00011816,2]
[361115843,1747271435060,-400.0,0.00011816,2]
[361115844,1747271435070,-403.84552976,0.00011816,2]
[361115845,1747271435080,-1151.87,0.00011816,2]
[361115846,1747271435089,-618.5,0.00011816,2]
[361115847,1747271435099,-400.0,0.00011816,2]
[361115848,1747271435109,-400.0,0.00011816,2]
[361115849,1747271435118,-439.49,0.00011816,2]
[361115850,1747271435128,-400.0,0.00011816,2]
[361115851,1747271435138,-482.13788263,0.00011816,2]
[361115852,1747271435147,-400.0,0.00011816,2]
[361115853,1747271435157,-736.67,0.00011816,2]
[361115854,1747271435167,-407.04996048,0.00011816,2]
[361115855,1747271435176,-404.69867125,0.00011816,2]
[361115856,1747271435186,-371.96168945,0.00011816,2]
[361115857,1747271435195,-400.0,0.00011816,2]
[361115858,1747271435205,-400.0,0.00011816,2]
[361115859,1747271435215,-400.86484897,0.00011816,2]
[361115860,1747271435225,-400.87,0.00011816,2]
[361115861,1747271435235,-400.0,0.00011816,2]
[361115862,1747271435244,-404.98697311,0.00011816,2]
[361115863,1747271435257,-3447.6,0.00011816,2]
[361115864,1747271435267,-1004.18,0.00011816,2]
[361115865,1747271435277,-657.03,0.00011816,2]
[361115866,1747271435286,-402.64610038,0.00011816,2]
[361115867,1747271435296,-853.47,0.00011816,2]
[361115868,1747271435306,-427.71305983,0.00011816,2]
[361115869,1747271435316,-410.40439804,0.00011816,2]
[361115870,1747271435325,-400.0,0.00011816,2]
[361115871,1747271435335,-400.0,0.00011816,2]
[361115872,1747271435344,-400.0,0.00011816,2]
[361115873,1747271435354,-410.33574255,0.00011816,2]
[361115874,1747271435363,-1131.84,0.00011816,2]
[361115875,1747271435373,-400.0,0.00011816,2]
[361115876,1747271435383,-716.2,0.00011816,2]
[361115877,1747271435392,-961.21,0.00011816,2]
[361115878,1747271435401,-400.0,0.00011816,2]
[361115879,1747271435411,-400.0,0.00011816,2]
[361115880,1747271435420,-520.19417666,0.00011816,2]
[361115881,1747271435430,-400.0,0.00011816,2]
[361115882,1747271435440,-400.0,0.00011816,2]
[361115883,1747271435449,-400.0,0.00011816,2]
[361115884,1747271435459,-409.35506513,0.00011816,2]
[361115885,1747271435469,-400.0,0.00011816,2]
[361115886,1747271435481,-4376.85,0.00011816,2]
[361115887,1747271435491,-400.0,0.00011816,2]
[361115888,1747271435501,-400.0,0.00011816,2]
[361115889,1747271435514,-474.18,0.00011816,2]